bitfinex/quotes_SOLUSD_20251204
["timestamp","ask_amount","ask_price","bid_price","bid_amount"]
[1764876929896,8.08,139.63,139.58,14.29939498]
[1764876930077,8.79,139.63,139.59,7.13504479]
[1764876930402,0.1,139.64,139.61,7.13504479]
[1764876930586,0.1,139.64,139.58,25.07522567]
[1764876930766,0.1,139.64,139.61,7.13504479]
[1764876930965,0.1,139.64,139.6,23.44390879]
[1764876931179,0.1,139.64,139.61,16.308864]
[1764876931393,0.1,139.64,139.63,14.2968295]
[1764876931894,0.1,139.64,139.63,14.9968295]
[1764876932670,0.1,139.64,139.63,14.2968295]
[1764876932993,0.1,139.64,139.63,14.9968295]
[1764876933892,0.1,139.64,139.63,7.86178471]
[1764876934091,0.1,139.64,139.63,14.9968295]
[1764876934672,15.31580809,139.75,139.64,8.80994492]
[1764876934872,15.31580809,139.75,139.7,7.13504479]
[1764876934873,0.71,139.73,139.7,7.13504479]
[1764876935072,0.71,139.73,139.67,16.308864]
[1764876935274,0.71,139.73,139.69,7.13504479]
[1764876935501,15.31580809,139.75,139.67,17.008864]
[1764876935502,0.1,139.75,139.71,7.13504479]
[1764876935683,0.1,139.75,139.72,7.13504479]
[1764876935879,0.1,139.75,139.71,0.7]
[1764876936090,0.1,139.75,139.7,23.46706013]
[1764876936295,0.1,139.75,139.74,16.308864]
[1764876936882,0.1,139.75,139.74,23.44390879]
[1764876937315,0.1,139.75,139.73,16.308864]
[1764876937492,0.1,139.75,139.74,16.308864]
[1764876937885,0.1,139.75,139.73,7.15641375]
[1764876938104,0.1,139.75,139.73,14.29145854]
[1764876938287,0.1,139.75,139.73,7.15641375]
[1764876938614,8.80994492,139.73,139.64,7.16111907]
[1764876938908,8.80994492,139.7,139.62,7.16229766]
[1764876939095,7.13504479,139.68,139.62,30.60620645]
[1764876939295,7.13504479,139.67,139.62,30.60620645]
[1764876939505,7.86984279,139.67,139.57,0.7]
[1764876939816,0.71,139.66,139.58,7.16420777]
[1764876940003,7.13504479,139.62,139.57,7.16479163]
[1764876940309,7.13504479,139.61,139.58,7.16410817]
[1764876940486,7.84504479,139.61,139.57,7.16448312]
[1764876940903,0.71,139.61,139.58,7.16422273]
[1764876941105,7.15984279,139.67,139.6,7.13504479]
[1764876941307,7.84504479,139.68,139.63,7.13504479]
[1764876941486,7.84504479,139.68,139.64,7.16127184]
[1764876941680,14.29427738,139.68,139.64,7.16127184]
[1764876941899,25.11880892,139.7,139.64,7.16127184]
[1764876941900,0.71,139.67,139.64,14.29631663]
[1764876942208,7.84504479,139.68,139.63,7.16175511]
[1764876942517,7.13504479,139.66,139.63,7.16175511]
[1764876942815,32.97705515,139.7,139.64,7.13504479]
[1764876942986,7.13504479,139.68,139.63,14.2967999]
[1764876943186,7.13504479,139.67,139.63,7.16175511]
[1764876943508,7.13504479,139.68,139.63,14.2967999]
[1764876943708,7.13504479,139.67,139.63,7.16175511]
[1764876943911,7.13504479,139.64,139.59,7.16344964]
[1764876944215,8.06,139.65,139.61,7.13504479]
[1764876944412,15.19504479,139.65,139.61,7.16266781]
[1764876944594,15.19504479,139.65,139.62,7.1620924]
[1764876944794,8.76,139.65,139.62,7.1620924]
[1764876945297,7.83504479,139.64,139.59,34.21750927]
[1764876945484,7.13504479,139.63,139.58,7.13504479]
[1764876945685,7.83504479,139.64,139.6,7.16318263]
[1764876945987,8.06,139.65,139.61,7.13504479]
[1764876946182,7.13504479,139.66,139.61,7.13504479]
[1764876946415,0.7,139.71,139.62,0.68]
[1764876946736,0.7,139.71,139.66,7.13504479]
[1764876947015,7.13504479,139.7,139.66,7.13504479]
[1764876947394,0.7,139.7,139.67,7.15973365]
[1764876947617,7.13504479,139.7,139.66,7.16007958]
[1764876947812,0.7,139.69,139.61,0.68]
[1764876947983,8.06,139.7,139.67,7.13504479]
[1764876948187,0.7,139.72,139.68,7.13504479]
[1764876948716,14.99228758,139.72,139.67,7.13504479]
[1764876948882,8.76,139.72,139.67,7.13504479]
[1764876949081,8.76,139.72,139.68,7.13504479]
[1764876949082,15.89504479,139.72,139.68,7.13504479]
[1764876949291,7.13504479,139.7,139.66,14.29493675]
[1764876949705,0.7,139.69,139.65,7.13504479]
[1764876949892,0.7,139.69,139.64,23.44390879]
[1764876950198,23.80280621,139.71,139.66,7.13504479]
[1764876950404,8.06,139.7,139.66,14.29513606]
[1764876950601,8.76,139.7,139.66,14.29513606]
[1764876951292,15.19504479,139.72,139.68,7.13504479]
[1764876951598,23.0524863,139.72,139.67,14.29436282]
[1764876951910,23.05234142,139.72,139.68,7.13504479]
[1764876952093,8.76,139.72,139.68,7.13504479]
[1764876952295,7.83504479,139.71,139.67,7.15931803]
[1764876952495,7.83504479,139.71,139.66,7.16018095]
[1764876952496,7.13504479,139.7,139.66,7.16018095]
[1764876952809,0.7,139.7,139.67,7.15955754]
[1764876953189,7.83504479,139.7,139.67,7.15955754]
[1764876953805,0.7,139.7,139.67,7.15955754]
[1764876953989,8.76,139.7,139.67,7.15955754]
[1764876954201,7.83504479,139.73,139.68,7.81504479]
[1764876954406,7.83504479,139.73,139.68,7.13504479]
[1764876954610,8.06,139.74,139.67,14.29460233]
[1764876954611,7.83504479,139.72,139.67,14.29460233]
[1764876954918,0.7,139.72,139.67,14.29460233]
[1764876955094,0.7,139.71,139.67,14.29460233]
[1764876955696,15.19504479,139.7,139.64,16.308864]
[1764876955915,14.2939443,139.69,139.65,7.16055863]
[1764876956223,8.06,139.7,139.66,7.13504479]
[1764876956393,8.06,139.7,139.67,7.13504479]
[1764876956595,0.7,139.7,139.66,7.13504479]
[1764876956791,8.06,139.7,139.67,7.13504479]
[1764876956993,8.06,139.7,139.66,0.68]
[1764876956994,8.06,139.71,139.68,7.13504479]
[1764876957221,8.06,139.71,139.66,7.13504479]
[1764876957222,7.13504479,139.7,139.66,7.13504479]
[1764876957518,7.13504479,139.69,139.65,7.16055863]
[1764876957696,7.13504479,139.68,139.64,30.60498247]
[1764876957895,15.19504479,139.67,139.61,25.96659884]
[1764876958096,7.13504479,139.66,139.62,7.13504479]
[1764876958307,7.13504479,139.66,139.63,7.16149023]
[1764876958896,8.06,139.67,139.63,6.66149023]
[1764876958897,15.19504479,139.67,139.63,6.66149023]
[1764876959197,7.83504479,139.66,139.63,6.66149023]
[1764876959421,7.83504479,139.66,139.62,14.2973286]
[1764876959714,0.7,139.66,139.63,7.16173323]
[1764876959920,15.19504479,139.67,139.63,7.16178471]
[1764876960139,15.89504479,139.67,139.63,7.16178471]
[1764876960328,8.06,139.67,139.64,0.68]
[1764876960533,7.83504479,139.67,139.63,7.16178471]
[1764876960699,7.83504479,139.67,139.63,14.2968295]
[1764876960896,8.06,139.68,139.59,52.12778154]
[1764876960897,7.83504479,139.66,139.62,14.29715653]
[1764876961099,8.06,139.66,139.64,7.13504479]
[1764876961311,8.06,139.66,139.63,0.68]
[1764876961517,347.87994781,139.75,139.65,7.13504479]
[1764876961518,0.1,139.75,139.65,7.13504479]
[1764876961798,7.13504479,139.69,139.65,7.13504479]
[1764876962128,8.06,139.69,139.66,7.16024631]
[1764876962725,8.06,139.7,139.68,7.13504479]
[1764876963927,8.06,139.7,139.65,16.308864]
[1764876963928,0.7,139.72,139.65,30.60451627]
[1764876964129,0.7,139.72,139.68,7.13504479]
[1764876964314,8.06,139.72,139.69,7.13504479]
[1764876964821,7.83504479,139.71,139.65,41.37136908]
[1764876965030,8.80994492,139.7,139.6,0.68]
[1764876965205,7.13504479,139.67,139.63,7.16141144]
[1764876965406,15.19504479,139.66,139.63,7.16141144]
[1764876965918,15.89504479,139.66,139.62,7.16209277]
[1764876966110,8.76,139.66,139.62,14.29713756]
[1764876966506,22.35546131,139.66,139.62,7.16209277]
[1764876966808,0.7,139.65,139.62,7.16209277]
[1764876967117,8.06,139.65,139.62,7.16209277]
[1764876967303,7.15717148,139.72,139.64,7.13504479]
[1764876967504,7.13504479,139.69,139.64,7.13504479]
[1764876967725,8.76,139.71,139.65,7.13504479]
[1764876967925,7.83504479,139.7,139.65,7.13504479]
[1764876968101,8.06,139.69,139.66,7.13504479]
[1764876968501,17.89292871,139.72,139.65,25.06218992]
[1764876968502,8.06,139.7,139.65,25.06218992]
[1764876968727,8.06,139.7,139.66,7.13504479]
[1764876968936,8.76,139.7,139.66,7.13504479]
[1764876969135,7.85682744,139.73,139.67,7.13504479]
[1764876969434,8.06,139.72,139.67,0.68]
[1764876969629,8.06,139.72,139.67,7.13504479]
[1764876969630,15.19504479,139.72,139.67,7.13504479]
[1764876969810,0.7,139.71,139.67,7.13504479]
[1764876970317,8.90994492,139.75,139.7,7.13504479]
[1764876970318,0.1,139.75,139.7,7.13504479]
[1764876970521,0.1,139.75,139.73,7.13504479]
[1764876971412,0.1,139.75,139.74,7.13504479]
[1764876971646,0.1,139.75,139.7,25.048864]
[1764876971828,0.8,139.75,139.71,7.13504479]
[1764876972135,7.9557281,139.75,139.7,23.46701618]
[1764876972310,7.13504479,139.74,139.68,25.73679032]
[1764876972512,7.13504479,139.72,139.67,7.13504479]
[1764876972841,7.13504479,139.72,139.61,0.99999999]
[1764876972842,7.13504479,139.71,139.63,0.66]
[1764876973010,8.06,139.71,139.68,7.15870946]
[1764876973211,15.88504479,139.71,139.66,14.29513931]
[1764876973433,7.13504479,139.67,139.6,0.66]
[1764876973734,15.19504479,139.66,139.61,23.44390879]
[1764876974106,7.13504479,139.66,139.62,7.13504479]
[1764876974311,7.13504479,139.67,139.63,7.16178471]
[1764876974530,7.84626894,139.74,139.66,23.44390879]
[1764876974735,0.69,139.73,139.69,7.13504479]
[1764876975623,7.82504479,139.73,139.68,7.13504479]
[1764876976016,0.69,139.72,139.68,7.13504479]
[1764876976714,0.69,139.72,139.68,14.29395897]
[1764876976912,7.13504479,139.69,139.64,7.13504479]
[1764876977212,15.19504479,139.69,139.66,7.15993071]
[1764876977418,15.88504479,139.69,139.66,7.15993071]
[1764876977816,8.75,139.69,139.67,7.15969097]
[1764876978029,8.06,139.69,139.67,7.15969097]
[1764876979015,0.69,139.72,139.67,19.53730338]
[1764876979220,8.06,139.71,139.67,7.15969097]
[1764876979443,8.06,139.71,139.68,12.37761241]
[1764876979736,15.96626879,139.74,139.68,12.37761241]
[1764876979941,0.1,139.75,139.67,41.36788911]
[1764876980149,8.06,139.74,139.71,12.37761241]
[1764876980517,8.06,139.74,139.69,0.66]
[1764876980826,8.06,139.74,139.72,7.15717148]
[1764876981011,8.75,139.74,139.72,7.15717148]
[1764876982312,8.75,139.74,139.71,37.42931942]
[1764876982616,0.1,139.75,139.72,12.37761241]
[1764876982834,0.1,139.75,139.74,12.37761241]
[1764876983332,0.1,139.75,139.74,29.34647641]
[1764876984119,0.1,139.75,139.74,36.50262354]
[1764876984720,1e-08,139.75,139.74,36.50262354]
[1764876986351,1e-08,139.77,139.76,28.68647641]
[1764876986746,1e-08,139.77,139.76,29.34647641]
[1764876987062,1e-08,139.77,139.76,28.68647641]
[1764876987226,1e-08,139.77,139.74,7.15614713]
[1764876987227,0.69000001,139.77,139.74,7.15614713]
[1764876987431,0.69000001,139.77,139.74,12.37761241]
[1764876987663,0.69000001,139.77,139.73,19.53412582]
[1764876987852,1e-08,139.77,139.76,12.37761241]
[1764876988356,1e-08,139.77,139.76,19.53273547]
[1764876988529,1e-08,139.77,139.76,7.15512306]
[1764876988733,1e-08,139.77,139.75,19.5331097]
[1764876988966,13.06761242,139.77,139.73,12.37761241]
[1764876989131,8.06,139.76,139.71,7.15732704]
[1764876989331,12.37761241,139.74,139.71,7.15732704]
[1764876989567,12.37761241,139.73,139.7,7.15806968]
[1764876989733,12.37761241,139.72,139.69,7.15854219]
[1764876990066,12.37761241,139.72,139.7,7.15806178]
[1764876990357,12.37761241,139.72,139.67,30.27655832]
[1764876990358,0.69,139.72,139.69,7.15870856]
[1764876990866,26.69711402,139.77,139.69,7.15870856]
[1764876990867,0.69000001,139.77,139.7,0.66]
[1764876991052,0.69000001,139.77,139.69,7.15870856]
[1764876991053,0.69,139.76,139.69,7.15870856]
[1764876991255,8.80994492,139.75,139.69,7.15870856]
[1764876991455,12.37761241,139.73,139.69,7.15870856]
[1764876991756,0.69,139.74,139.69,7.15870856]
[1764876991961,13.06761241,139.74,139.69,37.43309239]
[1764876992256,0.69,139.74,139.67,16.308864]
[1764876992455,13.06761241,139.73,139.68,12.37761241]
[1764876992630,13.06761241,139.73,139.67,28.68647641]
[1764876992829,12.37761241,139.71,139.66,37.4384745]
[1764876993058,12.37761241,139.69,139.66,7.16024631]
[1764876993250,17.55994492,139.72,139.62,12.37761241]
[1764876993251,12.37761241,139.67,139.62,12.37761241]
[1764876993427,0.69,139.71,139.65,7.16073238]
[1764876993627,12.37761241,139.67,139.64,7.16116984]
[1764876994048,0.69,139.66,139.64,7.16116984]
[1764876994237,0.69,139.66,139.63,25.0662465]
[1764876994433,0.69,139.66,139.63,7.16178471]
[1764876994743,12.37761241,139.64,139.62,7.16216303]
[1764876994949,8.80994492,139.62,139.56,7.16522599]
[1764876995144,8.80994492,139.62,139.55,17.91392932]
[1764876995365,12.37761241,139.6,139.55,30.29154173]
[1764876995540,12.37761241,139.6,139.56,25.07881913]
[1764876995737,0.69,139.59,139.56,25.07881913]
[1764876995948,0.69,139.6,139.56,25.07881913]
[1764876996753,13.06761241,139.6,139.56,25.07881913]
[1764876996944,0.69,139.6,139.56,25.07881913]
[1764876997146,12.37761241,139.6,139.56,25.07881913]
[1764876997353,0.69,139.59,139.56,25.07881913]
[1764876997943,13.06761241,139.59,139.56,25.07881913]
[1764876998154,0.69,139.59,139.56,25.07881913]
[1764876998364,21.12761241,139.61,139.56,25.07881913]
[1764876998541,0.69,139.6,139.56,25.07881913]
[1764876998958,12.37761241,139.62,139.57,12.37761241]
[1764876999260,8.06,139.61,139.56,38.11643154]
[1764876999469,21.12761241,139.62,139.56,38.11643154]
[1764877000070,21.12761241,139.62,139.57,12.37761241]
[1764877000454,8.06,139.62,139.58,25.07522567]
[1764877000654,8.75,139.62,139.58,37.45283808]
[1764877000947,8.75,139.62,139.59,12.37761241]
[1764877001344,8.06,139.62,139.59,12.37761241]
[1764877001548,8.06,139.62,139.58,25.73522567]
[1764877001757,8.06,139.63,139.59,12.37761241]
[1764877002040,0.69,139.64,139.61,12.37761241]
[1764877003354,20.43761241,139.66,139.61,12.37761241]
[1764877003553,0.68,139.65,139.63,7.16178471]
[1764877004565,8.06,139.66,139.63,19.53939712]
[1764877004766,8.06,139.66,139.63,37.44385891]
[1764877004974,0.68,139.65,139.63,7.16178471]
[1764877006273,8.06,139.66,139.63,19.53939712]
[1764877007058,8.06,139.66,139.64,12.37761241]
[1764877008091,0.68,139.7,139.65,12.37761241]
[1764877008372,8.74,139.69,139.67,12.37761241]
[1764877009055,8.74,139.69,139.63,17.90446179]
[1764877009056,8.06,139.71,139.68,12.37761241]
[1764877009248,8.06,139.71,139.69,12.37761241]
[1764877009878,8.06,139.71,139.69,19.53605887]
[1764877010085,8.74,139.71,139.69,19.53605887]
[1764877010880,0.68,139.7,139.68,7.15911938]
[1764877011083,0.68,139.7,139.68,7.15920627]
[1764877011780,0.68,139.72,139.69,7.15870856]
[1764877011974,8.74,139.72,139.69,19.53632097]
[1764877012547,8.06,139.72,139.7,12.37761241]
[1764877012970,8.06,139.72,139.69,37.43309239]
[1764877013357,16.308864,139.76,139.71,12.37761241]
[1764877013560,0.68,139.75,139.69,25.76547998]
[1764877013777,12.37761241,139.74,139.69,25.05547998]
[1764877014077,20.43761241,139.73,139.69,7.15870856]
[1764877014286,20.43761241,139.73,139.67,7.15954622]
[1764877014287,12.37761241,139.71,139.67,7.15954622]
[1764877014807,12.37761241,139.69,139.63,17.90380957]
[1764877014958,12.37761241,139.69,139.63,18.61380957]
[1764877015152,13.05761241,139.69,139.65,19.53821243]
[1764877015459,0.68,139.68,139.65,7.16060002]
[1764877015875,8.80994492,139.74,139.66,0.71]
[1764877016068,8.74,139.73,139.68,12.37761241]
[1764877016267,21.11761241,139.73,139.68,12.37761241]
[1764877016578,0.68,139.72,139.68,12.37761241]
[1764877016782,8.06,139.73,139.68,12.37761241]
[1764877016783,8.74,139.73,139.68,12.37761241]
[1764877016984,21.11761241,139.73,139.69,7.15870856]
[1764877017163,8.74,139.73,139.69,19.53632097]
[1764877017360,0.68,139.72,139.69,19.53632097]
[1764877017555,0.68,139.72,139.69,7.15870856]
[1764877017878,8.06,139.73,139.7,12.37761241]
[1764877018078,8.06,139.76,139.72,12.37761241]
[1764877018295,8.74,139.76,139.72,12.37761241]
[1764877018461,0.68,139.75,139.72,12.37761241]
[1764877018783,13.05761241,139.75,139.7,13.08761241]
[1764877018980,25.04149872,139.77,139.7,13.08761241]
[1764877018981,1e-08,139.77,139.71,7.15717343]
[1764877019163,1e-08,139.77,139.71,25.05138286]
[1764877019356,1e-08,139.77,139.72,0.71]
[1764877019557,1e-08,139.77,139.73,12.37761241]
[1764877019779,0.68000001,139.77,139.73,12.37761241]
[1764877020079,20.21236856,139.77,139.69,0.71]
[1764877020254,7.83475615,139.77,139.72,12.37761241]
[1764877020455,13.05761241,139.76,139.72,12.37761241]
[1764877020654,8.06,139.75,139.71,19.53495987]
[1764877020954,12.37761241,139.74,139.68,23.46767029]
[1764877021159,12.37761241,139.71,139.67,12.37761241]
[1764877021379,0.68,139.73,139.65,0.71]
[1764877021583,12.37761241,139.71,139.66,7.15978731]
[1764877021771,8.06,139.7,139.67,12.37761241]
[1764877021956,8.74,139.7,139.66,19.53739972]
[1764877022155,8.74,139.7,139.67,7.15963709]
[1764877022478,12.37761241,139.71,139.68,12.37761241]
[1764877022479,8.06,139.71,139.68,12.37761241]
[1764877023280,8.06,139.71,139.66,17.89954423]
[1764877023463,13.05761241,139.7,139.65,7.16067066]
[1764877023779,12.37761241,139.68,139.65,7.16070078]
[1764877023981,12.37761241,139.68,139.64,7.16118288]
[1764877024495,8.74,139.71,139.65,0.71]
[1764877024683,13.05761241,139.7,139.65,12.37761241]
[1764877024863,26.70166404,139.73,139.65,13.08761241]
[1764877024864,0.68,139.69,139.65,13.08761241]
[1764877025066,21.11761241,139.69,139.64,53.75083889]
[1764877025289,21.11761241,139.69,139.64,54.46083889]
[1764877025466,8.74,139.69,139.65,12.37761241]
[1764877025860,8.74,139.69,139.64,42.08322648]
[1764877026089,8.74,139.69,139.65,12.37761241]
[1764877026981,8.74,139.69,139.65,0.71]
[1764877027167,8.74,139.69,139.65,12.37761241]
[1764877027872,20.43761241,139.69,139.64,53.75083889]
[1764877028073,12.37761241,139.66,139.64,7.16118288]
[1764877028270,20.43761241,139.66,139.64,7.16118288]
[1764877028484,0.68,139.7,139.64,7.16118288]
[1764877028683,8.06,139.7,139.66,12.37761241]
[1764877028983,12.37761241,139.68,139.64,37.44197489]
[1764877029160,12.37761241,139.69,139.64,37.44197489]
[1764877029359,7.15731732,139.72,139.66,12.37761241]
[1764877029561,8.06,139.69,139.66,19.53785872]
[1764877030190,8.06,139.69,139.66,37.4384745]
[1764877030385,8.06,139.69,139.66,25.77086209]
[1764877030594,8.06,139.69,139.66,38.1484745]
[1764877031390,8.06,139.69,139.61,35.81371276]
[1764877031391,0.68,139.68,139.61,36.52371276]
[1764877031603,0.68,139.68,139.61,43.68652344]
[1764877031906,8.06,139.69,139.65,12.37761241]
[1764877032197,8.06,139.69,139.66,12.37761241]
[1764877032401,13.05761241,139.68,139.64,12.37761241]
[1764877032609,13.05761241,139.68,139.63,12.37761241]
[1764877032758,0.7,139.67,139.63,13.08761241]
[1764877032963,0.7,139.67,139.63,12.37761241]
[1764877033196,0.7,139.67,139.61,25.06983739]
[1764877033377,13.07761241,139.68,139.63,12.37761241]
[1764877033696,12.37761241,139.67,139.63,7.16178471]
[1764877033993,12.37761241,139.66,139.63,7.16178471]
[1764877034170,0.7,139.66,139.63,7.16178471]
[1764877034587,0.7,139.66,139.63,19.53939712]
[1764877034903,8.06,139.69,139.65,12.37761241]
[1764877035100,12.37761241,139.68,139.64,12.37761241]
[1764877035394,13.07761241,139.67,139.63,25.0662465]
[1764877035797,0.7,139.67,139.63,38.12385891]
[1764877036088,0.7,139.67,139.64,12.37761241]
[1764877036304,0.7,139.67,139.63,38.12385891]
[1764877036684,13.07761241,139.67,139.63,19.53939712]
[1764877037301,13.07761241,139.67,139.63,7.16178471]
[1764877037468,0.7,139.66,139.63,7.16178471]
[1764877037865,7.85947158,139.68,139.63,7.16178471]
[1764877038070,13.07761241,139.67,139.63,7.16178471]
[1764877038303,12.37761241,139.65,139.6,30.28588673]
[1764877038464,8.76,139.69,139.64,7.11006741]
[1764877038661,8.06,139.7,139.67,7.11006741]
[1764877038989,8.76,139.7,139.67,7.11006741]
[1764877039181,5.862905,139.77,139.65,0.68]
[1764877039182,0.7,139.74,139.69,7.11006741]
[1764877039405,8.06,139.73,139.68,0.68]
[1764877039573,8.06,139.73,139.7,7.11006741]
[1764877039774,8.76,139.73,139.69,7.11006741]
[1764877039977,8.76,139.73,139.7,14.26826354]
[1764877040176,8.06,139.73,139.7,14.26826354]
[1764877042178,0.7,139.72,139.69,14.26877597]
[1764877042581,0.7,139.72,139.69,7.15870856]
[1764877042889,0.7,139.72,139.69,14.26877597]
[1764877043202,8.06,139.73,139.7,7.11006741]
[1764877043708,7.11006741,139.71,139.64,35.80438039]
[1764877043889,0.7,139.72,139.63,0.68]
[1764877043890,7.11006741,139.68,139.63,7.11006741]
[1764877044084,25.11880892,139.74,139.61,0.68]
[1764877044085,7.11006741,139.66,139.62,7.16229766]
[1764877044294,22.33036637,139.66,139.62,7.16229766]
[1764877044498,7.11006741,139.64,139.6,7.11006741]
[1764877044696,0.7,139.65,139.59,7.16373408]
[1764877044697,7.11006741,139.63,139.59,7.16373408]
[1764877044880,7.11006741,139.63,139.6,7.16321432]
[1764877045085,7.81006741,139.63,139.6,7.16321432]
[1764877045299,0.7,139.63,139.61,7.16259158]
[1764877045689,7.81006741,139.65,139.61,7.16259158]
[1764877045904,0.7,139.65,139.61,14.27265899]
[1764877046202,0.7,139.65,139.57,41.38588627]
[1764877046417,15.17006741,139.66,139.61,7.11006741]
[1764877046702,15.87006741,139.66,139.61,7.11006741]
[1764877047185,15.87006741,139.66,139.61,7.79006741]
[1764877047707,15.87006741,139.66,139.62,7.16229766]
[1764877048201,15.87006741,139.66,139.62,14.27236507]
[1764877048584,15.87006741,139.66,139.62,32.17810923]
[1764877048794,8.76,139.66,139.62,32.17810923]
[1764877049093,8.76,139.66,139.62,25.06804182]
[1764877049297,7.81006741,139.68,139.64,7.11006741]
[1764877049496,7.81006741,139.68,139.65,7.11006741]
[1764877049497,8.76,139.68,139.65,7.11006741]
[1764877049803,8.76,139.68,139.65,7.16050445]
[1764877051078,0.7,139.67,139.64,7.16127184]
[1764877052410,7.81006741,139.67,139.63,14.27172845]
[1764877052609,7.81006741,139.67,139.6,0.68]
[1764877052905,7.81006741,139.66,139.62,7.16208264]
[1764877053110,8.06,139.65,139.62,7.16197416]
[1764877053409,23.03087148,139.65,139.61,7.11006741]
[1764877053595,7.81006741,139.64,139.6,7.16322149]
[1764877054111,7.81006741,139.63,139.6,7.16322149]
[1764877054904,8.06,139.62,139.59,14.27390436]
[1764877055212,8.76,139.62,139.59,14.27390436]
[1764877055406,8.76,139.62,139.59,7.16383695]
[1764877056106,7.11006741,139.6,139.55,7.11006741]
[1764877056285,15.17006741,139.59,139.55,7.11006741]
[1764877056488,8.06,139.59,139.55,7.11006741]
[1764877056698,15.87006741,139.59,139.56,7.16502873]
[1764877057208,0.7,139.58,139.54,14.9562719]
[1764877057586,0.7,139.58,139.55,7.16588826]
[1764877058398,7.81006741,139.58,139.53,7.11006741]
[1764877058605,7.81006741,139.58,139.52,18.59833775]
[1764877058803,7.81006741,139.58,139.53,7.11006741]
[1764877059108,14.97452456,139.58,139.54,7.16636258]
[1764877059305,0.7,139.58,139.55,7.11006741]
[1764877060013,0.7,139.58,139.54,32.87243973]
[1764877060193,7.81006741,139.58,139.54,7.16636258]
[1764877061110,0.7,139.57,139.54,7.16636258]
[1764877061314,0.7,139.6,139.55,7.79006741]
[1764877061616,8.06,139.59,139.57,7.11006741]
[1764877061992,7.81006741,139.62,139.58,7.11006741]
[1764877061993,0.7,139.62,139.58,7.11006741]
[1764877062185,0.7,139.62,139.57,0.68]
[1764877062186,8.06,139.61,139.59,7.11006741]
[1764877062411,8.06,139.61,139.58,7.11006741]
[1764877062919,8.06,139.61,139.57,0.68]
[1764877063097,8.74,139.61,139.58,7.16435019]
[1764877063621,8.06,139.61,139.58,14.2744176]
[1764877063925,8.06,139.61,139.58,32.18529308]
[1764877064101,8.06,139.61,139.58,32.86529308]
[1764877064299,8.06,139.61,139.58,25.75522567]
[1764877064494,8.06,139.61,139.58,32.86529308]
[1764877064693,8.06,139.64,139.6,7.11006741]
[1764877065112,8.74,139.64,139.61,7.16281068]
[1764877065807,8.06,139.64,139.61,7.16281068]
[1764877066015,8.06,139.64,139.61,14.95287809]
[1764877066194,8.06,139.64,139.61,7.16281068]
[1764877067724,8.06,139.64,139.61,14.27287809]
[1764877068695,8.74,139.64,139.61,25.01709412]
[1764877069201,8.06,139.64,139.61,25.01709412]
[1764877069410,8.06,139.64,139.62,7.11006741]
[1764877069621,14.26991773,139.67,139.62,7.11006741]
[1764877069622,7.15944606,139.68,139.63,7.11006741]
[1764877069799,8.06,139.67,139.65,7.11006741]
[1764877070123,15.17006741,139.67,139.63,7.11006741]
[1764877070299,15.17006741,139.67,139.64,7.79006741]
[1764877070300,8.06,139.67,139.64,7.79006741]
[1764877070501,0.68,139.7,139.66,7.11006741]
[1764877070707,8.06,139.69,139.67,7.15973365]
[1764877071312,8.74,139.69,139.67,7.15973365]
[1764877071919,8.74,139.69,139.66,7.1601061]
[1764877072809,8.74,139.69,139.6,67.29555032]
[1764877072810,7.15973365,139.67,139.63,7.11006741]
[1764877073103,8.74,139.66,139.63,7.11006741]
[1764877073317,0.68,139.7,139.65,7.11006741]
[1764877073523,8.06,139.69,139.65,7.11006741]
[1764877074027,8.74,139.69,139.65,7.11006741]
[1764877074200,8.06,139.69,139.65,7.11006741]
[1764877074402,8.74,139.69,139.64,0.68]
[1764877074596,8.74,139.69,139.66,14.27031372]
[1764877075631,103.38,139.74,139.68,7.11006741]
[1764877075802,103.38,139.74,139.67,0.68]
[1764877075803,0.68,139.74,139.71,7.11006741]
[1764877076127,0.68,139.74,139.67,0.68]
[1764877076128,7.79006741,139.73,139.67,0.68]
[1764877076326,7.79006741,139.73,139.66,7.16024631]
[1764877076327,7.11006741,139.71,139.66,7.16024631]
[1764877076529,7.11006741,139.7,139.66,14.27031372]